[Event "Titled Tuesday Blitz July 25 Late 2023"]
[White "Mordechai, Hanan"]
[Black "Quirke, Jeffrey"]
[WhiteFideId "2804166"]
[BlackFideId "2013029"]
[WhiteElo "2535"]
[BlackElo "2198"]
[Result "1-0"]
[Round "1"]
[TimeControl "180+2"]
[Date "2023.07.25"]
[WhiteClock "0:00:26"]
[BlackClock "0:00:00"]
[Board "174"]

1. Nf3 {[%clk 0:03:00]}  e6 {[%clk 0:02:56]} 2. b3 {[%clk 0:03:00]}  b6 {[%clk 0:02:55]} 3. Bb2 {[%clk 0:03:01]}  Bb7 {[%clk 0:02:55]} 4. c4 {[%clk 0:03:01]}  f5 {[%clk 0:02:55]} 5. d4 {[%clk 0:03:00]}  Nf6 {[%clk 0:02:55]} 6. Nc3 {[%clk 0:02:59]}  Bb4 {[%clk 0:02:55]} 7. e3 {[%clk 0:02:57]}  O-O {[%clk 0:02:54]} 8. Be2 {[%clk 0:02:56]}  Ne4 {[%clk 0:02:53]} 9. Qc2 {[%clk 0:02:52]}  d6 {[%clk 0:02:51]} 10. O-O {[%clk 0:02:51]}  Bxc3 {[%clk 0:02:46]} 11. Bxc3 {[%clk 0:02:52]}  Nd7 {[%clk 0:02:45]} 12. b4 {[%clk 0:02:51]}  a5 {[%clk 0:02:44]} 13. a3 {[%clk 0:02:49]}  Nxc3 {[%clk 0:02:43]} 14. Qxc3 {[%clk 0:02:49]}  Nf6 {[%clk 0:02:43]} 15. c5 {[%clk 0:02:41]}  Bd5 {[%clk 0:02:34]} 16. Rfc1 {[%clk 0:02:29]}  Qd7 {[%clk 0:02:22]} 17. bxa5 {[%clk 0:02:13]}  Rxa5 {[%clk 0:02:07]} 18. cxb6 {[%clk 0:02:09]}  cxb6 {[%clk 0:02:08]} 19. Qb4 {[%clk 0:02:08]}  Rb8 {[%clk 0:01:13]} 20. Rab1 {[%clk 0:02:06]}  h6 {[%clk 0:01:10]} 21. Qxa5 {[%clk 0:01:50]}  bxa5 {[%clk 0:01:11]} 22. Rxb8+ {[%clk 0:01:50]}  Kh7 {[%clk 0:01:09]} 23. Rcc8 {[%clk 0:01:47]}  g5 {[%clk 0:00:54]} 24. Bb5 {[%clk 0:01:30]}  Qa7 {[%clk 0:00:43]} 25. a4 {[%clk 0:01:28]}  Bxf3 {[%clk 0:00:34]} 26. gxf3 {[%clk 0:01:29]}  g4 {[%clk 0:00:27]} 27. fxg4 {[%clk 0:01:09]}  Nxg4 {[%clk 0:00:26]} 28. Rh8+ {[%clk 0:01:03]}  Kg7 {[%clk 0:00:26]} 29. Rbg8+ {[%clk 0:01:01]}  Kf6 {[%clk 0:00:26]} 30. h3 {[%clk 0:01:02]}  Qc7 {[%clk 0:00:16]} 31. Rc8 {[%clk 0:00:55]}  Qb7 {[%clk 0:00:12]} 32. hxg4 {[%clk 0:00:52]}  Qf3 {[%clk 0:00:11]} 33. Rcf8+ {[%clk 0:00:46]}  Ke7 {[%clk 0:00:10]} 34. Re8+ {[%clk 0:00:44]}  Kf7 {[%clk 0:00:10]} 35. Ref8+ {[%clk 0:00:37]}  Ke7 {[%clk 0:00:10]} 36. Rfg8 {[%clk 0:00:37]}  fxg4 {[%clk 0:00:09]} 37. Bf1 {[%clk 0:00:34]}  d5 {[%clk 0:00:06]} 38. Rxh6 {[%clk 0:00:32]}  Qd1 {[%clk 0:00:05]} 39. Rgg6 {[%clk 0:00:27]}  Qxa4 {[%clk 0:00:04]} 40. Rxe6+ {[%clk 0:00:28]}  Kf7 {[%clk 0:00:05]} 41. Ref6+ {[%clk 0:00:28]}  Ke7 {[%clk 0:00:05]} 42. Ra6 {[%clk 0:00:26]}  Qb4 {[%clk 0:00:00]} 43. Ra7+ {[%clk 0:00:26]} 1-0


[Site "https://www.chess.com"]

[Event "Titled Tuesday Blitz July 25 Late 2023"]
[White "Martins, Bruno Andre Leite"]
[Black "Winslow, Elliott"]
[WhiteFideId "1942255"]
[BlackFideId "2002523"]
[WhiteElo "2535"]
[BlackElo "2176"]
[Result "1-0"]
[Round "1"]
[TimeControl "180+2"]
[Date "2023.07.25"]
[WhiteClock "0:01:03"]
[BlackClock "0:00:48"]
[Board "176"]

1. e4 {[%clk 0:01:37]}  c5 {[%clk 0:02:57]} 2. Nf3 {[%clk 0:01:37]}  d6 {[%clk 0:02:56]} 3. d4 {[%clk 0:01:37]}  cxd4 {[%clk 0:02:56]} 4. Nxd4 {[%clk 0:01:38]}  Nf6 {[%clk 0:02:56]} 5. Nc3 {[%clk 0:01:39]}  g6 {[%clk 0:02:55]} 6. Be3 {[%clk 0:01:37]}  Nc6 {[%clk 0:02:54]} 7. f3 {[%clk 0:01:36]}  Bg7 {[%clk 0:02:52]} 8. Qd2 {[%clk 0:01:33]}  O-O {[%clk 0:02:51]} 9. O-O-O {[%clk 0:01:34]}  d5 {[%clk 0:02:51]} 10. Qe1 {[%clk 0:01:34]}  e5 {[%clk 0:02:47]} 11. Nxc6 {[%clk 0:01:33]}  bxc6 {[%clk 0:02:46]} 12. Bc5 {[%clk 0:01:30]}  d4 {[%clk 0:02:42]} 13. Na4 {[%clk 0:01:28]}  Re8 {[%clk 0:02:36]} 14. Bc4 {[%clk 0:01:29]}  Nd7 {[%clk 0:02:31]} 15. Ba3 {[%clk 0:01:28]}  Nb6 {[%clk 0:02:23]} 16. Bb3 {[%clk 0:01:29]}  Nxa4 {[%clk 0:02:18]} 17. Bxa4 {[%clk 0:01:29]}  Qb6 {[%clk 0:02:16]} 18. Qb4 {[%clk 0:01:27]}  Bb7 {[%clk 0:02:05]} 19. Bb3 {[%clk 0:01:21]}  Bf8 {[%clk 0:01:55]} 20. Qxb6 {[%clk 0:01:21]}  axb6 {[%clk 0:01:52]} 21. Bxf8 {[%clk 0:01:22]}  Kxf8 {[%clk 0:01:52]} 22. c3 {[%clk 0:01:21]}  c5 {[%clk 0:01:44]} 23. cxd4 {[%clk 0:01:21]}  cxd4 {[%clk 0:01:43]} 24. Kb1 {[%clk 0:01:21]}  Rec8 {[%clk 0:01:42]} 25. h4 {[%clk 0:01:19]}  Ke7 {[%clk 0:01:38]} 26. h5 {[%clk 0:01:19]}  g5 {[%clk 0:01:36]} 27. h6 {[%clk 0:01:19]}  f6 {[%clk 0:01:36]} 28. Rc1 {[%clk 0:01:16]}  Rxc1+ {[%clk 0:01:24]} 29. Rxc1 {[%clk 0:01:17]}  Kd6 {[%clk 0:01:20]} 30. a3 {[%clk 0:01:09]}  Bc6 {[%clk 0:01:03]} 31. g4 {[%clk 0:01:04]}  Rg8 {[%clk 0:00:48]} 32. Bxg8 {[%clk 0:01:03]} 1-0


[Site "https://www.chess.com"]

[Event "Titled Tuesday Blitz July 25 Late 2023"]
[White "Vila Dupla, Aurelio"]
[Black "Martinez Reyes, Pedro Ramon"]
[WhiteFideId "2203383"]
[BlackFideId "3901807"]
[WhiteElo "2176"]
[BlackElo "2535"]
[Result "1-0"]
[Round "1"]
[TimeControl "180+2"]
[Date "2023.07.25"]
[WhiteClock "0:01:10"]
[BlackClock "0:01:40"]
[Board "177"]

1. Nf3 {[%clk 0:03:00]}  d5 {[%clk 0:02:56]} 2. d4 {[%clk 0:03:00]}  Nc6 {[%clk 0:02:55]} 3. c4 {[%clk 0:02:56]}  Bg4 {[%clk 0:02:54]} 4. cxd5 {[%clk 0:02:55]}  Bxf3 {[%clk 0:02:53]} 5. gxf3 {[%clk 0:02:53]}  Qxd5 {[%clk 0:02:54]} 6. e3 {[%clk 0:02:52]}  e5 {[%clk 0:02:54]} 7. Nc3 {[%clk 0:02:53]}  Bb4 {[%clk 0:02:55]} 8. Bd2 {[%clk 0:02:53]}  Bxc3 {[%clk 0:02:54]} 9. bxc3 {[%clk 0:02:54]}  Nge7 {[%clk 0:02:54]} 10. Rb1 {[%clk 0:02:52]}  b6 {[%clk 0:02:48]} 11. Bg2 {[%clk 0:02:52]}  O-O {[%clk 0:02:43]} 12. O-O {[%clk 0:02:52]}  Ng6 {[%clk 0:02:43]} 13. f4 {[%clk 0:02:39]}  e4 {[%clk 0:02:43]} 14. Qc2 {[%clk 0:02:13]}  Rae8 {[%clk 0:02:39]} 15. c4 {[%clk 0:02:13]}  Qf5 {[%clk 0:02:35]} 16. f3 {[%clk 0:02:10]}  Nh4 {[%clk 0:02:34]} 17. fxe4 {[%clk 0:02:02]}  Qg4 {[%clk 0:02:34]} 18. Be1 {[%clk 0:02:01]}  Nxg2 {[%clk 0:02:30]} 19. Qxg2 {[%clk 0:02:01]}  Qxg2+ {[%clk 0:02:31]} 20. Kxg2 {[%clk 0:02:01]}  Rxe4 {[%clk 0:02:32]} 21. Kf3 {[%clk 0:01:53]}  Rfe8 {[%clk 0:02:29]} 22. Bd2 {[%clk 0:01:53]}  f5 {[%clk 0:02:18]} 23. Rb5 {[%clk 0:01:53]}  g6 {[%clk 0:02:18]} 24. c5 {[%clk 0:01:53]}  Ne7 {[%clk 0:02:13]} 25. cxb6 {[%clk 0:01:52]}  axb6 {[%clk 0:02:13]} 26. Rc1 {[%clk 0:01:52]}  Rc8 {[%clk 0:02:06]} 27. Bb4 {[%clk 0:01:52]}  c5 {[%clk 0:02:01]} 28. dxc5 {[%clk 0:01:35]}  Nd5 {[%clk 0:02:00]} 29. Bd2 {[%clk 0:01:35]}  Kf7 {[%clk 0:01:55]} 30. cxb6 {[%clk 0:01:25]}  Rxc1 {[%clk 0:01:51]} 31. Bxc1 {[%clk 0:01:25]}  Rb4 {[%clk 0:01:42]} 32. Rxb4 {[%clk 0:01:23]}  Nxb4 {[%clk 0:01:43]} 33. b7 {[%clk 0:01:20]}  Na6 {[%clk 0:01:43]} 34. Bb2 {[%clk 0:01:15]}  Ke6 {[%clk 0:01:43]} 35. Be5 {[%clk 0:01:15]}  g5 {[%clk 0:01:41]} 36. b8=Q {[%clk 0:01:14]}  g4+ {[%clk 0:01:42]} 37. Ke2 {[%clk 0:01:13]}  Nxb8 {[%clk 0:01:43]} 38. Bxb8 {[%clk 0:01:13]}  h6 {[%clk 0:01:44]} 39. a4 {[%clk 0:01:13]}  h5 {[%clk 0:01:44]} 40. a5 {[%clk 0:01:12]}  Kd7 {[%clk 0:01:45]} 41. Be5 {[%clk 0:01:11]}  Kc6 {[%clk 0:01:45]} 42. Bc3 {[%clk 0:01:12]}  h4 {[%clk 0:01:45]} 43. Kf2 {[%clk 0:01:12]}  Kb5 {[%clk 0:01:44]} 44. Bf6 {[%clk 0:01:11]}  h3 {[%clk 0:01:44]} 45. Bc3 {[%clk 0:01:11]}  Ka6 {[%clk 0:01:43]} 46. Kg3 {[%clk 0:01:11]}  Kb5 {[%clk 0:01:43]} 47. Be1 {[%clk 0:01:11]}  Kc5 {[%clk 0:01:40]} 48. Kh4 {[%clk 0:01:11]}  Kd5 {[%clk 0:01:40]} 49. a6 {[%clk 0:01:11]}  g3 {[%clk 0:01:40]} 50. Kxg3 {[%clk 0:01:10]} 1-0


[Site "https://www.chess.com"]

[Event "Titled Tuesday Blitz July 25 Late 2023"]
[White "Principe, Alexander"]
[Black "Oliveira, Tiago Batista"]
[WhiteFideId "3804542"]
[BlackFideId "2108291"]
[WhiteElo "2534"]
[BlackElo "2160"]
[Result "1-0"]
[Round "1"]
[TimeControl "180+2"]
[Date "2023.07.25"]
[WhiteClock "0:01:36"]
[BlackClock "0:00:00"]
[Board "178"]

1. e4 {[%clk 0:02:59]}  e5 {[%clk 0:02:59]} 2. Nf3 {[%clk 0:02:59]}  Nc6 {[%clk 0:02:59]} 3. d4 {[%clk 0:02:59]}  exd4 {[%clk 0:02:59]} 4. Nxd4 {[%clk 0:03:00]}  Nf6 {[%clk 0:02:58]} 5. Nxc6 {[%clk 0:03:00]}  bxc6 {[%clk 0:02:58]} 6. e5 {[%clk 0:03:00]}  Qe7 {[%clk 0:02:57]} 7. Qe2 {[%clk 0:03:01]}  Nd5 {[%clk 0:02:57]} 8. c4 {[%clk 0:03:01]}  Ba6 {[%clk 0:02:57]} 9. b3 {[%clk 0:03:01]}  Qh4 {[%clk 0:02:56]} 10. a3 {[%clk 0:02:57]}  Bc5 {[%clk 0:02:11]} 11. g3 {[%clk 0:02:41]}  Qe7 {[%clk 0:01:43]} 12. Bb2 {[%clk 0:02:35]}  O-O {[%clk 0:01:20]} 13. Bg2 {[%clk 0:02:34]}  f6 {[%clk 0:01:04]} 14. O-O {[%clk 0:02:26]}  fxe5 {[%clk 0:00:54]} 15. Nd2 {[%clk 0:02:24]}  Rae8 {[%clk 0:00:22]} 16. Ne4 {[%clk 0:02:23]}  Nf6 {[%clk 0:00:20]} 17. Rad1 {[%clk 0:02:09]}  d6 {[%clk 0:00:18]} 18. Nxc5 {[%clk 0:02:09]}  dxc5 {[%clk 0:00:18]} 19. Bxc6 {[%clk 0:02:07]}  Rd8 {[%clk 0:00:16]} 20. Rfe1 {[%clk 0:02:03]}  Rxd1 {[%clk 0:00:10]} 21. Qxd1 {[%clk 0:02:04]}  Bc8 {[%clk 0:00:09]} 22. Rxe5 {[%clk 0:02:03]}  Qd6 {[%clk 0:00:09]} 23. Bd5+ {[%clk 0:02:01]}  Kh8 {[%clk 0:00:09]} 24. Qe2 {[%clk 0:02:01]}  Bg4 {[%clk 0:00:07]} 25. f3 {[%clk 0:02:01]}  Bd7 {[%clk 0:00:06]} 26. Re7 {[%clk 0:01:58]}  c6 {[%clk 0:00:05]} 27. Bf7 {[%clk 0:01:58]}  Bh3 {[%clk 0:00:03]} 28. Rxa7 {[%clk 0:01:41]}  Rd8 {[%clk 0:00:02]} 29. Re7 {[%clk 0:01:35]}  Qd1+ {[%clk 0:00:01]} 30. Qxd1 {[%clk 0:01:35]}  Rxd1+ {[%clk 0:00:01]} 31. Kf2 {[%clk 0:01:35]}  Rd2+ {[%clk 0:00:00]} 32. Re2 {[%clk 0:01:36]} 1-0


[Site "https://www.chess.com"]

[Event "Titled Tuesday Blitz July 25 Late 2023"]
[White "Sailer, Mike"]
[Black "Santos Flores, Alberto"]
[WhiteFideId "2012901"]
[BlackFideId "3601234"]
[WhiteElo "2158"]
[BlackElo "2533"]
[Result "0-1"]
[Round "1"]
[TimeControl "180+2"]
[Date "2023.07.25"]
[WhiteClock "0:00:25"]
[BlackClock "0:01:42"]
[Board "179"]

1. d4 {[%clk 0:02:59]}  d5 {[%clk 0:02:59]} 2. Nc3 {[%clk 0:03:00]}  Nf6 {[%clk 0:02:57]} 3. Bf4 {[%clk 0:03:00]}  e6 {[%clk 0:02:53]} 4. Nb5 {[%clk 0:02:59]}  Bb4+ {[%clk 0:02:52]} 5. c3 {[%clk 0:02:59]}  Ba5 {[%clk 0:02:53]} 6. b4 {[%clk 0:02:58]}  Bb6 {[%clk 0:02:53]} 7. a4 {[%clk 0:02:54]}  a5 {[%clk 0:02:52]} 8. Na3 {[%clk 0:02:42]}  axb4 {[%clk 0:02:40]} 9. cxb4 {[%clk 0:02:42]}  Nc6 {[%clk 0:02:40]} 10. a5 {[%clk 0:02:03]}  Bxd4 {[%clk 0:02:38]} 11. Rb1 {[%clk 0:01:47]}  e5 {[%clk 0:02:29]} 12. Bg5 {[%clk 0:01:40]}  Bf5 {[%clk 0:02:29]} 13. Bxf6 {[%clk 0:01:33]}  Qxf6 {[%clk 0:02:26]} 14. e3 {[%clk 0:01:34]}  Bc3+ {[%clk 0:02:22]} 15. Ke2 {[%clk 0:01:30]}  Bxb1 {[%clk 0:02:20]} 16. Qxb1 {[%clk 0:01:29]}  Bxb4 {[%clk 0:02:19]} 17. Nb5 {[%clk 0:01:28]}  Qe7 {[%clk 0:02:16]} 18. Nf3 {[%clk 0:01:17]}  Rxa5 {[%clk 0:02:15]} 19. g3 {[%clk 0:01:11]}  Rxb5 {[%clk 0:02:14]} 20. Bg2 {[%clk 0:01:09]}  O-O {[%clk 0:02:12]} 21. Rc1 {[%clk 0:01:08]}  Ra5 {[%clk 0:02:08]} 22. Kf1 {[%clk 0:01:08]}  Rfa8 {[%clk 0:02:08]} 23. Kg1 {[%clk 0:00:59]}  e4 {[%clk 0:01:59]} 24. Nh4 {[%clk 0:00:52]}  g6 {[%clk 0:01:57]} 25. Bf1 {[%clk 0:00:51]}  Ne5 {[%clk 0:01:53]} 26. Be2 {[%clk 0:00:44]}  c5 {[%clk 0:01:50]} 27. Ng2 {[%clk 0:00:32]}  Ra2 {[%clk 0:01:48]} 28. Bd1 {[%clk 0:00:28]}  Nd3 {[%clk 0:01:43]} 29. Rc2 {[%clk 0:00:25]}  Ra1 {[%clk 0:01:42]} 0-1


[Site "https://www.chess.com"]

[Event "Titled Tuesday Blitz July 25 Late 2023"]
[White "Shapiro, Viktor"]
[Black "Novikova, Margarita"]
[WhiteFideId "4175700"]
[BlackFideId "14109689"]
[WhiteElo "2531"]
[BlackElo "2156"]
[Result "0-1"]
[Round "1"]
[TimeControl "180+2"]
[Date "2023.07.25"]
[WhiteClock "0:00:10"]
[BlackClock "0:00:06"]
[Board "180"]

1. c4 {[%clk 0:02:59]}  c5 {[%clk 0:02:59]} 2. Nc3 {[%clk 0:02:59]}  Nc6 {[%clk 0:02:59]} 3. g3 {[%clk 0:03:00]}  Nf6 {[%clk 0:02:58]} 4. Bg2 {[%clk 0:03:01]}  d6 {[%clk 0:02:58]} 5. Nf3 {[%clk 0:03:01]}  g6 {[%clk 0:02:57]} 6. d3 {[%clk 0:03:01]}  Bg7 {[%clk 0:02:57]} 7. O-O {[%clk 0:03:02]}  O-O {[%clk 0:02:57]} 8. a3 {[%clk 0:03:03]}  a6 {[%clk 0:02:56]} 9. Rb1 {[%clk 0:03:03]}  Rb8 {[%clk 0:02:55]} 10. b4 {[%clk 0:03:04]}  b6 {[%clk 0:02:54]} 11. h3 {[%clk 0:02:59]}  Qc7 {[%clk 0:02:52]} 12. e4 {[%clk 0:02:59]}  Nd4 {[%clk 0:02:48]} 13. Nxd4 {[%clk 0:02:58]}  cxd4 {[%clk 0:02:48]} 14. Ne2 {[%clk 0:02:58]}  Nd7 {[%clk 0:02:42]} 15. Bb2 {[%clk 0:02:49]}  e5 {[%clk 0:02:37]} 16. f4 {[%clk 0:02:48]}  b5 {[%clk 0:02:36]} 17. cxb5 {[%clk 0:02:42]}  axb5 {[%clk 0:02:35]} 18. Rc1 {[%clk 0:02:39]}  Qa7 {[%clk 0:02:35]} 19. f5 {[%clk 0:02:39]}  Bb7 {[%clk 0:02:15]} 20. Rc7 {[%clk 0:02:36]}  Rfd8 {[%clk 0:02:13]} 21. Qb3 {[%clk 0:02:35]}  d5 {[%clk 0:01:40]} 22. fxg6 {[%clk 0:02:29]}  hxg6 {[%clk 0:01:32]} 23. exd5 {[%clk 0:02:10]}  Bxd5 {[%clk 0:01:30]} 24. Qxd5 {[%clk 0:01:59]}  Qxc7 {[%clk 0:01:28]} 25. Qxf7+ {[%clk 0:02:00]}  Kh8 {[%clk 0:01:27]} 26. Qxg6 {[%clk 0:01:55]}  Nf8 {[%clk 0:01:24]} 27. Qh5+ {[%clk 0:01:55]}  Kg8 {[%clk 0:01:13]} 28. Be4 {[%clk 0:01:47]}  Rb6 {[%clk 0:01:05]} 29. Bc1 {[%clk 0:01:43]}  Qe7 {[%clk 0:00:50]} 30. Bg5 {[%clk 0:01:41]}  Qe8 {[%clk 0:00:46]} 31. Qg4 {[%clk 0:01:16]}  Rdd6 {[%clk 0:00:34]} 32. h4 {[%clk 0:01:15]}  Qd7 {[%clk 0:00:22]} 33. Qh5 {[%clk 0:01:11]}  Qa7 {[%clk 0:00:19]} 34. g4 {[%clk 0:01:02]}  Rb8 {[%clk 0:00:16]} 35. Bc1 {[%clk 0:00:58]}  Qd7 {[%clk 0:00:16]} 36. Rf5 {[%clk 0:00:54]}  Qe8 {[%clk 0:00:16]} 37. Qg5 {[%clk 0:00:53]}  Qd8 {[%clk 0:00:16]} 38. Qh5 {[%clk 0:00:49]}  Qe8 {[%clk 0:00:16]} 39. Rxf8+ {[%clk 0:00:47]}  Qxf8 {[%clk 0:00:13]} 40. Qh7+ {[%clk 0:00:47]}  Kf7 {[%clk 0:00:12]} 41. Bg5 {[%clk 0:00:44]}  Ke8 {[%clk 0:00:11]} 42. Qh5+ {[%clk 0:00:41]}  Kd7 {[%clk 0:00:11]} 43. Bf5+ {[%clk 0:00:41]}  Kc7 {[%clk 0:00:11]} 44. Ng3 {[%clk 0:00:41]}  Qe8 {[%clk 0:00:10]} 45. Qh7 {[%clk 0:00:41]}  Rd7 {[%clk 0:00:08]} 46. Bxd7 {[%clk 0:00:40]}  Qxd7 {[%clk 0:00:09]} 47. Nf5 {[%clk 0:00:38]}  Bf8 {[%clk 0:00:09]} 48. Qg6 {[%clk 0:00:38]}  Rb6 {[%clk 0:00:09]} 49. Qg8 {[%clk 0:00:38]}  Be7 {[%clk 0:00:07]} 50. Bxe7 {[%clk 0:00:38]}  e4 {[%clk 0:00:07]} 51. dxe4 {[%clk 0:00:35]}  d3 {[%clk 0:00:07]} 52. Qb3 {[%clk 0:00:31]}  d2 {[%clk 0:00:07]} 53. Qd1 {[%clk 0:00:31]}  Rc6 {[%clk 0:00:07]} 54. Bc5 {[%clk 0:00:31]}  Re6 {[%clk 0:00:06]} 55. Be3 {[%clk 0:00:27]}  Rxe4 {[%clk 0:00:06]} 56. Qxd2 {[%clk 0:00:27]}  Rxg4+ {[%clk 0:00:07]} 57. Kh2 {[%clk 0:00:27]}  Qxf5 {[%clk 0:00:07]} 58. Qc3+ {[%clk 0:00:25]}  Kb7 {[%clk 0:00:07]} 59. Qh8 {[%clk 0:00:13]}  Qc2+ {[%clk 0:00:06]} 60. Kh3 {[%clk 0:00:10]}  Qg2# {[%clk 0:00:06]} 0-1


[Site "https://www.chess.com"]

[Event "Titled Tuesday Blitz July 25 Late 2023"]
[White "campochess"]
[Black "Musovic, Armin"]
[BlackFideId "939935"]
[WhiteElo "2152"]
[BlackElo "2529"]
[Result "1/2-1/2"]
[Round "1"]
[TimeControl "180+2"]
[Date "2023.07.25"]
[WhiteClock "0:00:41"]
[BlackClock "0:00:56"]
[Board "181"]

1. c4 {[%clk 0:02:58]}  e5 {[%clk 0:02:58]} 2. Nc3 {[%clk 0:02:56]}  Bb4 {[%clk 0:02:58]} 3. Nd5 {[%clk 0:02:55]}  Bc5 {[%clk 0:02:58]} 4. e3 {[%clk 0:02:54]}  c6 {[%clk 0:02:58]} 5. Nc3 {[%clk 0:02:53]}  Nf6 {[%clk 0:02:58]} 6. Nf3 {[%clk 0:02:49]}  d6 {[%clk 0:02:57]} 7. d4 {[%clk 0:02:49]}  exd4 {[%clk 0:02:57]} 8. Nxd4 {[%clk 0:02:48]}  O-O {[%clk 0:02:57]} 9. Be2 {[%clk 0:02:47]}  Re8 {[%clk 0:02:56]} 10. O-O {[%clk 0:02:46]}  a5 {[%clk 0:02:57]} 11. b3 {[%clk 0:02:45]}  Nbd7 {[%clk 0:02:55]} 12. Nf5 {[%clk 0:02:42]}  Ne5 {[%clk 0:02:51]} 13. Ng3 {[%clk 0:02:39]}  Bg4 {[%clk 0:02:42]} 14. Bb2 {[%clk 0:02:22]}  h5 {[%clk 0:02:39]} 15. Nge4 {[%clk 0:02:16]}  Bxe2 {[%clk 0:02:33]} 16. Nxf6+ {[%clk 0:02:15]}  Qxf6 {[%clk 0:02:32]} 17. Qxe2 {[%clk 0:02:11]}  Qg6 {[%clk 0:02:30]} 18. Kh1 {[%clk 0:02:09]}  h4 {[%clk 0:02:26]} 19. h3 {[%clk 0:02:06]}  Nd3 {[%clk 0:02:25]} 20. Rad1 {[%clk 0:01:59]}  Nxb2 {[%clk 0:02:13]} 21. Qxb2 {[%clk 0:01:58]}  Re5 {[%clk 0:02:00]} 22. Qb1 {[%clk 0:01:57]}  Qe6 {[%clk 0:01:53]} 23. Ne2 {[%clk 0:01:51]}  Re8 {[%clk 0:01:53]} 24. Nf4 {[%clk 0:01:51]}  Qh6 {[%clk 0:01:53]} 25. Nd3 {[%clk 0:01:46]}  Rg5 {[%clk 0:01:47]} 26. Nxc5 {[%clk 0:01:43]}  dxc5 {[%clk 0:01:47]} 27. Rd7 {[%clk 0:01:36]}  Qe6 {[%clk 0:01:45]} 28. Rfd1 {[%clk 0:01:36]}  b5 {[%clk 0:01:26]} 29. R1d6 {[%clk 0:01:20]}  Qe4 {[%clk 0:01:25]} 30. Qxe4 {[%clk 0:01:18]}  Rxe4 {[%clk 0:01:26]} 31. Rxc6 {[%clk 0:01:17]}  bxc4 {[%clk 0:01:24]} 32. bxc4 {[%clk 0:01:15]}  Rxc4 {[%clk 0:01:24]} 33. Rc8+ {[%clk 0:01:09]}  Kh7 {[%clk 0:01:25]} 34. Rxf7 {[%clk 0:01:09]}  Rc1+ {[%clk 0:01:19]} 35. Kh2 {[%clk 0:01:07]}  Rc2 {[%clk 0:01:20]} 36. a4 {[%clk 0:01:02]}  Ra2 {[%clk 0:01:11]} 37. Rf4 {[%clk 0:01:01]}  Kg6 {[%clk 0:01:08]} 38. Rc6+ {[%clk 0:00:59]}  Kh5 {[%clk 0:01:09]} 39. Rc8 {[%clk 0:00:44]}  Kg6 {[%clk 0:01:04]} 40. Rc6+ {[%clk 0:00:43]}  Kh5 {[%clk 0:01:04]} 41. Rc8 {[%clk 0:00:41]}  Kg6 {[%clk 0:00:56]} 1/2-1/2


[Site "https://www.chess.com"]

[Event "Titled Tuesday Blitz July 25 Late 2023"]
[White "Suder, Jakub"]
[Black "Osmonbekov, Talaibek"]
[WhiteFideId "1195310"]
[BlackFideId "2017253"]
[WhiteElo "2529"]
[BlackElo "2152"]
[Result "1-0"]
[Round "1"]
[TimeControl "180+2"]
[Date "2023.07.25"]
[WhiteClock "0:01:42"]
[BlackClock "0:00:00"]
[Board "182"]

1. d4 {[%clk 0:03:00]}  e6 {[%clk 0:02:59]} 2. c4 {[%clk 0:03:00]}  f5 {[%clk 0:02:59]} 3. Nc3 {[%clk 0:02:56]}  Bb4 {[%clk 0:02:58]} 4. Qc2 {[%clk 0:02:51]}  Nf6 {[%clk 0:02:58]} 5. e3 {[%clk 0:02:48]}  b6 {[%clk 0:02:56]} 6. Bd3 {[%clk 0:02:41]}  Bb7 {[%clk 0:02:56]} 7. Ne2 {[%clk 0:02:41]}  O-O {[%clk 0:02:56]} 8. f3 {[%clk 0:02:38]}  Nh5 {[%clk 0:02:49]} 9. O-O {[%clk 0:02:37]}  a5 {[%clk 0:02:44]} 10. b3 {[%clk 0:02:34]}  Na6 {[%clk 0:02:42]} 11. a3 {[%clk 0:02:34]}  Bd6 {[%clk 0:02:39]} 12. Nb5 {[%clk 0:02:31]}  Rc8 {[%clk 0:02:36]} 13. Bb2 {[%clk 0:02:28]}  Rf6 {[%clk 0:02:17]} 14. Nxd6 {[%clk 0:02:27]}  cxd6 {[%clk 0:02:17]} 15. Qd2 {[%clk 0:02:27]}  Rh6 {[%clk 0:02:12]} 16. Qe1 {[%clk 0:02:24]}  Qg5 {[%clk 0:02:01]} 17. Qf2 {[%clk 0:02:24]}  Rg6 {[%clk 0:01:41]} 18. Kh1 {[%clk 0:02:22]}  Nc7 {[%clk 0:01:37]} 19. Rae1 {[%clk 0:02:18]}  Ne8 {[%clk 0:01:34]} 20. Bc1 {[%clk 0:02:14]}  e5 {[%clk 0:00:52]} 21. d5 {[%clk 0:02:04]}  Nef6 {[%clk 0:00:33]} 22. f4 {[%clk 0:01:59]}  exf4 {[%clk 0:00:29]} 23. exf4 {[%clk 0:01:58]}  Qh6 {[%clk 0:00:17]} 24. Bxf5 {[%clk 0:01:57]}  Ng4 {[%clk 0:00:16]} 25. Bxg4 {[%clk 0:01:57]}  Rxg4 {[%clk 0:00:15]} 26. f5 {[%clk 0:01:57]}  Qf6 {[%clk 0:00:13]} 27. Nf4 {[%clk 0:01:51]}  Nxf4 {[%clk 0:00:10]} 28. Bxf4 {[%clk 0:01:51]}  Qxf5 {[%clk 0:00:08]} 29. h3 {[%clk 0:01:45]}  Rg6 {[%clk 0:00:00]} 30. Qxb6 {[%clk 0:01:42]} 1-0


[Site "https://www.chess.com"]

[Event "Titled Tuesday Blitz July 25 Late 2023"]
[White "Karamsetty, Jeevan"]
[Black "Curtis, John"]
[WhiteFideId "2025337"]
[BlackFideId "3200256"]
[WhiteElo "2528"]
[BlackElo "2124"]
[Result "1-0"]
[Round "1"]
[TimeControl "180+2"]
[Date "2023.07.25"]
[WhiteClock "0:00:35"]
[BlackClock "0:00:10"]
[Board "184"]

1. e4 {[%clk 0:03:00]}  c5 {[%clk 0:02:43]} 2. Nf3 {[%clk 0:03:00]}  d6 {[%clk 0:02:41]} 3. Bb5+ {[%clk 0:02:59]}  Nc6 {[%clk 0:02:39]} 4. O-O {[%clk 0:02:58]}  Bd7 {[%clk 0:02:33]} 5. c3 {[%clk 0:02:57]}  Nf6 {[%clk 0:02:33]} 6. Re1 {[%clk 0:02:56]}  e5 {[%clk 0:02:33]} 7. Bxc6 {[%clk 0:02:52]}  Bxc6 {[%clk 0:02:31]} 8. d4 {[%clk 0:02:52]}  Bxe4 {[%clk 0:02:14]} 9. Ng5 {[%clk 0:02:16]}  Bxb1 {[%clk 0:01:45]} 10. Rxb1 {[%clk 0:01:58]}  cxd4 {[%clk 0:01:40]} 11. cxd4 {[%clk 0:01:57]}  Be7 {[%clk 0:01:40]} 12. Qb3 {[%clk 0:01:41]}  O-O {[%clk 0:01:37]} 13. Qxb7 {[%clk 0:01:37]}  Qd7 {[%clk 0:01:26]} 14. Qf3 {[%clk 0:01:25]}  h6 {[%clk 0:01:09]} 15. dxe5 {[%clk 0:01:17]}  dxe5 {[%clk 0:01:08]} 16. Ne4 {[%clk 0:01:17]}  Nxe4 {[%clk 0:01:02]} 17. Qxe4 {[%clk 0:01:17]}  Bf6 {[%clk 0:00:55]} 18. Be3 {[%clk 0:01:17]}  Qe6 {[%clk 0:00:51]} 19. b3 {[%clk 0:01:15]}  a6 {[%clk 0:00:47]} 20. Rbc1 {[%clk 0:01:08]}  Rac8 {[%clk 0:00:45]} 21. Qa4 {[%clk 0:01:07]}  Rxc1 {[%clk 0:00:43]} 22. Rxc1 {[%clk 0:01:08]}  Rc8 {[%clk 0:00:42]} 23. Rd1 {[%clk 0:00:55]}  Rd8 {[%clk 0:00:30]} 24. Re1 {[%clk 0:00:50]}  Rc8 {[%clk 0:00:27]} 25. h3 {[%clk 0:00:47]}  Rc2 {[%clk 0:00:26]} 26. Rd1 {[%clk 0:00:45]}  Bg5 {[%clk 0:00:22]} 27. Bxg5 {[%clk 0:00:37]}  hxg5 {[%clk 0:00:21]} 28. Qe4 {[%clk 0:00:35]}  g6 {[%clk 0:00:10]} 29. Qxc2 {[%clk 0:00:35]} 1-0


[Site "https://www.chess.com"]